[Event "Titled Tuesday Blitz February 22 Late 2022"]
[White "Lopez Perdomo, Juan David"]
[Black "Barp, Alberto"]
[WhiteFideId "4405137"]
[BlackFideId "872555"]
[WhiteElo "1997"]
[BlackElo "2229"]
[Result "0-1"]
[Round "01"]
[TimeControl "180+1"]
[Date "2022.02.23"]
[WhiteClock "0:00:14"]
[BlackClock "0:00:27"]

1. e4 {[%clk 0:02:59]}  c6 {[%clk 0:02:53]} 2. d4 {[%clk 0:02:58]}  d5 {[%clk 0:02:54]} 3. Nc3 {[%clk 0:02:57]}  dxe4 {[%clk 0:02:51]} 4. Nxe4 {[%clk 0:02:57]}  Bf5 {[%clk 0:02:52]} 5. Ng3 {[%clk 0:02:57]}  Bg6 {[%clk 0:02:52]} 6. Nf3 {[%clk 0:02:51]}  Nd7 {[%clk 0:02:52]} 7. Bd3 {[%clk 0:02:48]}  Ngf6 {[%clk 0:02:52]} 8. O-O {[%clk 0:02:46]}  e6 {[%clk 0:02:52]} 9. Bg5 {[%clk 0:02:45]}  Qc7 {[%clk 0:02:42]} 10. Re1 {[%clk 0:02:42]}  Bd6 {[%clk 0:02:32]} 11. Qe2 {[%clk 0:02:38]}  O-O-O {[%clk 0:02:26]} 12. b4 {[%clk 0:02:27]}  Bxb4 {[%clk 0:02:17]} 13. Reb1 {[%clk 0:02:17]}  Bc3 {[%clk 0:02:12]} 14. Ba6 {[%clk 0:02:17]}  Nb6 {[%clk 0:01:56]} 15. a4 {[%clk 0:00:46]}  Bxa1 {[%clk 0:01:48]} 16. a5 {[%clk 0:00:47]}  bxa6 {[%clk 0:01:45]} 17. axb6 {[%clk 0:00:47]}  axb6 {[%clk 0:01:44]} 18. Rxa1 {[%clk 0:00:48]}  b5 {[%clk 0:01:34]} 19. Rxa6 {[%clk 0:00:47]}  Kb7 {[%clk 0:01:34]} 20. Ra1 {[%clk 0:00:31]}  Ra8 {[%clk 0:01:34]} 21. Rf1 {[%clk 0:00:23]}  Ra4 {[%clk 0:01:25]} 22. c3 {[%clk 0:00:22]}  Nd5 {[%clk 0:01:22]} 23. Ne5 {[%clk 0:00:15]}  f6 {[%clk 0:01:21]} 24. Nd3 {[%clk 0:00:14]}  Bxd3 {[%clk 0:01:19]} 25. Qxd3 {[%clk 0:00:15]}  fxg5 {[%clk 0:01:19]} 26. Ne4 {[%clk 0:00:15]}  Rc4 {[%clk 0:01:16]} 27. Rb1 {[%clk 0:00:14]}  Kc8 {[%clk 0:01:10]} 28. Nxg5 {[%clk 0:00:12]}  Qe7 {[%clk 0:01:07]} 29. Qg3 {[%clk 0:00:10]}  Rxc3 {[%clk 0:01:02]} 30. Nf3 {[%clk 0:00:11]}  Kb7 {[%clk 0:00:56]} 31. Qe5 {[%clk 0:00:09]}  Re8 {[%clk 0:00:48]} 32. h3 {[%clk 0:00:10]}  Qc7 {[%clk 0:00:45]} 33. Qg5 {[%clk 0:00:09]}  h6 {[%clk 0:00:45]} 34. Qg6 {[%clk 0:00:07]}  Rxf3 {[%clk 0:00:31]} 35. Qxe8 {[%clk 0:00:07]}  Qf7 {[%clk 0:00:28]} 36. Qd8 {[%clk 0:00:04]}  Rf6 {[%clk 0:00:18]} 37. Ra1 {[%clk 0:00:04]}  Nb6 {[%clk 0:00:18]} 38. d5 {[%clk 0:00:03]}  exd5 {[%clk 0:00:18]} 39. Re1 {[%clk 0:00:02]}  Re6 {[%clk 0:00:18]} 40. Rf1 {[%clk 0:00:01]}  Qe7 {[%clk 0:00:18]} 41. Qh8 {[%clk 0:00:02]}  Re1 {[%clk 0:00:18]} 42. Qh7 {[%clk 0:00:03]}  Rxf1+ {[%clk 0:00:18]} 43. Kxf1 {[%clk 0:00:04]}  Nc4 {[%clk 0:00:18]} 44. Qc2 {[%clk 0:00:04]}  Qc5 {[%clk 0:00:18]} 45. Kg1 {[%clk 0:00:03]}  Kb6 {[%clk 0:00:18]} 46. Qc3 {[%clk 0:00:03]}  d4 {[%clk 0:00:18]} 47. Qd3 {[%clk 0:00:03]}  Qd5 {[%clk 0:00:19]} 48. Qg6 {[%clk 0:00:04]}  Ne5 {[%clk 0:00:19]} 49. Qxg7 {[%clk 0:00:04]}  d3 {[%clk 0:00:19]} 50. Qxh6 {[%clk 0:00:05]}  d2 {[%clk 0:00:20]} 51. Qe3+ {[%clk 0:00:06]}  Kb7 {[%clk 0:00:19]} 52. Qh6 {[%clk 0:00:04]}  d1=Q+ {[%clk 0:00:19]} 53. Kh2 {[%clk 0:00:05]}  Qd6 {[%clk 0:00:19]} 54. Qg7+ {[%clk 0:00:06]}  Kb6 {[%clk 0:00:19]} 55. f4 {[%clk 0:00:06]}  Nf3+ {[%clk 0:00:19]} 56. gxf3 {[%clk 0:00:06]}  Q6d2+ {[%clk 0:00:19]} 57. Qg2 {[%clk 0:00:06]}  Qxg2+ {[%clk 0:00:18]} 58. Kxg2 {[%clk 0:00:07]}  Qd2+ {[%clk 0:00:19]} 59. Kg3 {[%clk 0:00:08]}  Qd6 {[%clk 0:00:19]} 60. Kg4 {[%clk 0:00:09]}  Qf8 {[%clk 0:00:20]} 61. f5 {[%clk 0:00:10]}  b4 {[%clk 0:00:21]} 62. Kf4 {[%clk 0:00:10]}  b3 {[%clk 0:00:22]} 63. h4 {[%clk 0:00:11]}  b2 {[%clk 0:00:23]} 64. h5 {[%clk 0:00:12]}  b1=Q {[%clk 0:00:24]} 65. h6 {[%clk 0:00:13]}  Qc1+ {[%clk 0:00:24]} 66. Kg3 {[%clk 0:00:13]}  Qcxh6 {[%clk 0:00:25]} 67. f4 {[%clk 0:00:13]}  Qxf5 {[%clk 0:00:25]} 68. Kf3 {[%clk 0:00:14]}  Qhh3+ {[%clk 0:00:25]} 69. Ke2 {[%clk 0:00:14]}  Qfd3+ {[%clk 0:00:26]} 70. Ke1 {[%clk 0:00:15]}  Qhf3 {[%clk 0:00:26]} 71. f5 {[%clk 0:00:14]}  Qfe2# {[%clk 0:00:27]} 0-1


[Site "https://www.chess.com"]

[Event "Titled Tuesday Blitz February 22 Late 2022"]
[White "Maltsevskaya, Aleksandra"]
[Black "Chyngyz, Sultai"]
[WhiteFideId "24174041"]
[BlackFideId "13803158"]
[WhiteElo "2283"]
[BlackElo "1339"]
[Result "0-1"]
[Round "01"]
[TimeControl "180+1"]
[Date "2022.02.23"]
[WhiteClock "0:00:13"]
[BlackClock "0:00:29"]

1. e4 {[%clk 0:02:54]}  c5 {[%clk 0:02:55]} 2. Nf3 {[%clk 0:02:53]}  d6 {[%clk 0:02:56]} 3. d4 {[%clk 0:02:52]}  cxd4 {[%clk 0:02:57]} 4. Nxd4 {[%clk 0:02:53]}  Nf6 {[%clk 0:02:56]} 5. Nc3 {[%clk 0:02:54]}  a6 {[%clk 0:02:56]} 6. Bg5 {[%clk 0:02:54]}  e6 {[%clk 0:02:56]} 7. Qd2 {[%clk 0:02:54]}  Be7 {[%clk 0:02:50]} 8. O-O-O {[%clk 0:02:53]}  O-O {[%clk 0:02:42]} 9. h4 {[%clk 0:02:34]}  b5 {[%clk 0:02:36]} 10. f3 {[%clk 0:02:31]}  b4 {[%clk 0:02:35]} 11. Nce2 {[%clk 0:02:30]}  a5 {[%clk 0:02:35]} 12. h5 {[%clk 0:02:26]}  Nxe4 {[%clk 0:02:24]} 13. Bxe7 {[%clk 0:02:26]}  Nxd2 {[%clk 0:02:23]} 14. Bxd8 {[%clk 0:02:24]}  Nxf1 {[%clk 0:02:23]} 15. Be7 {[%clk 0:02:18]}  Ne3 {[%clk 0:02:22]} 16. Bxf8 {[%clk 0:01:50]}  Nxd1 {[%clk 0:02:20]} 17. Bxd6 {[%clk 0:01:50]}  Ne3 {[%clk 0:02:18]} 18. g4 {[%clk 0:01:48]}  Ba6 {[%clk 0:02:14]} 19. h6 {[%clk 0:01:45]}  g6 {[%clk 0:02:08]} 20. Ng3 {[%clk 0:01:46]}  Nd7 {[%clk 0:02:04]} 21. Re1 {[%clk 0:01:37]}  Nc4 {[%clk 0:02:00]} 22. Be7 {[%clk 0:01:30]}  Rc8 {[%clk 0:01:58]} 23. Kb1 {[%clk 0:01:28]}  e5 {[%clk 0:01:56]} 24. Nb3 {[%clk 0:01:26]}  a4 {[%clk 0:01:55]} 25. Nc1 {[%clk 0:01:24]}  Nd2+ {[%clk 0:01:55]} 26. Ka1 {[%clk 0:01:24]}  Nxf3 {[%clk 0:01:53]} 27. Rd1 {[%clk 0:01:25]}  Nd4 {[%clk 0:01:51]} 28. Bxb4 {[%clk 0:01:15]}  Nxc2+ {[%clk 0:01:50]} 29. Kb1 {[%clk 0:01:15]}  Nf6 {[%clk 0:01:32]} 30. Be7 {[%clk 0:01:06]}  Nxg4 {[%clk 0:01:28]} 31. Ne4 {[%clk 0:01:04]}  Nxh6 {[%clk 0:01:22]} 32. Rh1 {[%clk 0:00:58]}  Bb7 {[%clk 0:01:01]} 33. Nf6+ {[%clk 0:00:47]}  Kg7 {[%clk 0:00:58]} 34. Rh2 {[%clk 0:00:45]}  Nd4 {[%clk 0:00:41]} 35. a3 {[%clk 0:00:41]}  Nf3 {[%clk 0:00:40]} 36. Rh3 {[%clk 0:00:37]}  Nd2+ {[%clk 0:00:40]} 37. Ka2 {[%clk 0:00:34]}  Ba6 {[%clk 0:00:35]} 38. Nd3 {[%clk 0:00:20]}  Bc4+ {[%clk 0:00:33]} 39. Ka1 {[%clk 0:00:20]}  Nb3+ {[%clk 0:00:31]} 40. Ka2 {[%clk 0:00:16]}  Bxd3 {[%clk 0:00:28]} 41. Rxd3 {[%clk 0:00:15]}  Nc1+ {[%clk 0:00:28]} 42. Kb1 {[%clk 0:00:13]}  Nxd3 {[%clk 0:00:29]} 0-1


[Site "https://www.chess.com"]

[Event "Titled Tuesday Blitz February 22 Late 2022"]
[White "Medeiros Jr, Francisco De Assis"]
[Black "Goryachkina, Aleksandra"]
[WhiteFideId "2114267"]
[BlackFideId "4147103"]
[WhiteElo "1998"]
[BlackElo "2426"]
[Result "0-1"]
[Round "01"]
[TimeControl "180+1"]
[Date "2022.02.23"]
[WhiteClock "0:00:19"]
[BlackClock "0:00:11"]

1. d4 {[%clk 0:02:59]}  Nf6 {[%clk 0:02:59]} 2. Nf3 {[%clk 0:02:59]}  d5 {[%clk 0:02:58]} 3. Bg5 {[%clk 0:02:59]}  Ne4 {[%clk 0:02:57]} 4. Bf4 {[%clk 0:03:00]}  c5 {[%clk 0:02:56]} 5. c3 {[%clk 0:03:00]}  Nc6 {[%clk 0:02:49]} 6. e3 {[%clk 0:02:58]}  Qb6 {[%clk 0:02:24]} 7. Qb3 {[%clk 0:02:58]}  c4 {[%clk 0:02:20]} 8. Qxb6 {[%clk 0:02:58]}  axb6 {[%clk 0:02:20]} 9. Nbd2 {[%clk 0:02:59]}  Bf5 {[%clk 0:02:18]} 10. a3 {[%clk 0:02:55]}  e6 {[%clk 0:02:15]} 11. Nxe4 {[%clk 0:02:45]}  Bxe4 {[%clk 0:02:14]} 12. Nd2 {[%clk 0:02:46]}  Bg6 {[%clk 0:02:12]} 13. Be2 {[%clk 0:02:45]}  Be7 {[%clk 0:02:12]} 14. Bf3 {[%clk 0:02:45]}  O-O {[%clk 0:02:06]} 15. O-O {[%clk 0:02:44]}  Bd3 {[%clk 0:02:02]} 16. Rfe1 {[%clk 0:02:45]}  f5 {[%clk 0:02:01]} 17. Bc7 {[%clk 0:02:32]}  b5 {[%clk 0:02:00]} 18. Be2 {[%clk 0:02:33]}  Bxe2 {[%clk 0:01:47]} 19. Rxe2 {[%clk 0:02:33]}  b4 {[%clk 0:01:45]} 20. cxb4 {[%clk 0:02:33]}  Nxb4 {[%clk 0:01:45]} 21. Nf3 {[%clk 0:02:29]}  Rfc8 {[%clk 0:01:40]} 22. Bg3 {[%clk 0:02:20]}  Nd3 {[%clk 0:01:33]} 23. Rd1 {[%clk 0:02:15]}  b5 {[%clk 0:01:28]} 24. Ne5 {[%clk 0:02:13]}  Nxe5 {[%clk 0:01:24]} 25. Bxe5 {[%clk 0:02:14]}  b4 {[%clk 0:01:13]} 26. axb4 {[%clk 0:02:00]}  Bxb4 {[%clk 0:01:14]} 27. f3 {[%clk 0:02:01]}  Ra2 {[%clk 0:01:13]} 28. Kf2 {[%clk 0:01:57]}  Bf8 {[%clk 0:00:56]} 29. e4 {[%clk 0:01:53]}  fxe4 {[%clk 0:00:55]} 30. fxe4 {[%clk 0:01:54]}  dxe4 {[%clk 0:00:54]} 31. d5 {[%clk 0:01:51]}  Rc5 {[%clk 0:00:33]} 32. Rxe4 {[%clk 0:01:21]}  exd5 {[%clk 0:00:30]} 33. Rf4 {[%clk 0:01:15]}  Rb5 {[%clk 0:00:23]} 34. Bd4 {[%clk 0:01:04]}  Bc5 {[%clk 0:00:17]} 35. Kf3 {[%clk 0:00:51]}  Bxd4 {[%clk 0:00:17]} 36. Rfxd4 {[%clk 0:00:49]}  Rbxb2 {[%clk 0:00:15]} 37. Rxd5 {[%clk 0:00:47]}  h6 {[%clk 0:00:12]} 38. Rd8+ {[%clk 0:00:39]}  Kh7 {[%clk 0:00:12]} 39. Rc8 {[%clk 0:00:40]}  Rf2+ {[%clk 0:00:12]} 40. Ke3 {[%clk 0:00:37]}  Rae2+ {[%clk 0:00:11]} 41. Kd4 {[%clk 0:00:37]}  Rxg2 {[%clk 0:00:12]} 42. Kxc4 {[%clk 0:00:19]}  Rc2+ {[%clk 0:00:11]} 43. Kb3 {[%clk 0:00:19]}  Rxc8 {[%clk 0:00:11]} 0-1


[Site "https://www.chess.com"]

[Event "Titled Tuesday Blitz February 22 Late 2022"]
[White "Mekhitarian, Krikor Sevag"]
[Black "Dounis, Alexandros"]
[WhiteFideId "2107660"]
[BlackFideId "4213238"]
[WhiteElo "2598"]
[BlackElo "2195"]
[Result "1-0"]
[Round "01"]
[TimeControl "180+1"]
[Date "2022.02.23"]
[WhiteClock "0:00:03"]
[BlackClock "0:00:03"]

1. e4 {[%clk 0:03:00]}  e5 {[%clk 0:02:59]} 2. Bc4 {[%clk 0:02:57]}  Nf6 {[%clk 0:02:57]} 3. d3 {[%clk 0:02:58]}  c6 {[%clk 0:02:54]} 4. Nf3 {[%clk 0:02:57]}  Be7 {[%clk 0:02:51]} 5. O-O {[%clk 0:02:53]}  d6 {[%clk 0:02:47]} 6. c3 {[%clk 0:02:52]}  O-O {[%clk 0:02:39]} 7. Re1 {[%clk 0:02:51]}  Nbd7 {[%clk 0:02:34]} 8. Bb3 {[%clk 0:02:51]}  Qc7 {[%clk 0:02:34]} 9. Bc2 {[%clk 0:02:51]}  Re8 {[%clk 0:02:34]} 10. Nbd2 {[%clk 0:02:51]}  Nf8 {[%clk 0:02:33]} 11. Nf1 {[%clk 0:02:51]}  Ng6 {[%clk 0:02:34]} 12. Ng3 {[%clk 0:02:51]}  h6 {[%clk 0:02:32]} 13. d4 {[%clk 0:02:51]}  Be6 {[%clk 0:02:25]} 14. Nf5 {[%clk 0:02:51]}  Bf8 {[%clk 0:02:24]} 15. h3 {[%clk 0:02:49]}  Rad8 {[%clk 0:02:24]} 16. Be3 {[%clk 0:02:48]}  d5 {[%clk 0:02:21]} 17. exd5 {[%clk 0:02:26]}  Nxd5 {[%clk 0:02:10]} 18. Qc1 {[%clk 0:02:04]}  Nxe3 {[%clk 0:01:58]} 19. Nxe3 {[%clk 0:02:03]}  exd4 {[%clk 0:01:50]} 20. Nxd4 {[%clk 0:02:04]}  Ne5 {[%clk 0:01:46]} 21. Nxe6 {[%clk 0:01:56]}  Rxe6 {[%clk 0:01:47]} 22. Rd1 {[%clk 0:01:55]}  Bc5 {[%clk 0:01:41]} 23. Nf5 {[%clk 0:01:22]}  Rxd1+ {[%clk 0:01:24]} 24. Qxd1 {[%clk 0:01:19]}  Qb6 {[%clk 0:01:19]} 25. Qe2 {[%clk 0:01:15]}  Ng6 {[%clk 0:01:09]} 26. Qf1 {[%clk 0:01:05]}  Qxb2 {[%clk 0:01:08]} 27. Qc1 {[%clk 0:00:56]}  Qxc3 {[%clk 0:00:59]} 28. Bb3 {[%clk 0:00:57]}  Qxc1+ {[%clk 0:00:51]} 29. Rxc1 {[%clk 0:00:57]}  Rf6 {[%clk 0:00:51]} 30. Rxc5 {[%clk 0:00:57]}  b6 {[%clk 0:00:44]} 31. Nxh6+ {[%clk 0:00:40]}  gxh6 {[%clk 0:00:43]} 32. Rc1 {[%clk 0:00:40]}  Ne5 {[%clk 0:00:38]} 33. g3 {[%clk 0:00:35]}  Nd3 {[%clk 0:00:33]} 34. Rc2 {[%clk 0:00:35]}  c5 {[%clk 0:00:27]} 35. Bc4 {[%clk 0:00:33]}  Ne5 {[%clk 0:00:25]} 36. Be2 {[%clk 0:00:31]}  Rd6 {[%clk 0:00:24]} 37. f4 {[%clk 0:00:31]}  Nc6 {[%clk 0:00:24]} 38. Bc4 {[%clk 0:00:26]}  Rd4 {[%clk 0:00:21]} 39. Kf2 {[%clk 0:00:25]}  Nb4 {[%clk 0:00:21]} 40. Rc3 {[%clk 0:00:24]}  Nxa2 {[%clk 0:00:20]} 41. Rc2 {[%clk 0:00:21]}  Nb4 {[%clk 0:00:18]} 42. Rc3 {[%clk 0:00:21]}  Nd5 {[%clk 0:00:18]} 43. Rc2 {[%clk 0:00:21]}  a6 {[%clk 0:00:15]} 44. Be2 {[%clk 0:00:17]}  Nb4 {[%clk 0:00:15]} 45. Rc3 {[%clk 0:00:18]}  Nd5 {[%clk 0:00:13]} 46. Rc2 {[%clk 0:00:16]}  Nf6 {[%clk 0:00:14]} 47. Bxa6 {[%clk 0:00:14]}  Ne4+ {[%clk 0:00:13]} 48. Kf3 {[%clk 0:00:14]}  Nd2+ {[%clk 0:00:13]} 49. Ke2 {[%clk 0:00:12]}  Ne4 {[%clk 0:00:13]} 50. Kf3 {[%clk 0:00:12]}  f5 {[%clk 0:00:13]} 51. Be2 {[%clk 0:00:10]}  Kg7 {[%clk 0:00:12]} 52. Rc1 {[%clk 0:00:09]}  Kf6 {[%clk 0:00:12]} 53. g4 {[%clk 0:00:09]}  Nd2+ {[%clk 0:00:11]} 54. Ke3 {[%clk 0:00:09]}  Nb3 {[%clk 0:00:11]} 55. Rb1 {[%clk 0:00:08]}  Rb4 {[%clk 0:00:10]} 56. Bd3 {[%clk 0:00:05]}  fxg4 {[%clk 0:00:10]} 57. hxg4 {[%clk 0:00:06]}  b5 {[%clk 0:00:09]} 58. Rg1 {[%clk 0:00:05]}  c4 {[%clk 0:00:09]} 59. g5+ {[%clk 0:00:06]}  hxg5 {[%clk 0:00:10]} 60. fxg5+ {[%clk 0:00:07]}  Kg7 {[%clk 0:00:10]} 61. Bc2 {[%clk 0:00:08]}  Nc5 {[%clk 0:00:10]} 62. Rh1 {[%clk 0:00:08]}  Ne6 {[%clk 0:00:09]} 63. Rh7+ {[%clk 0:00:08]}  Kg8 {[%clk 0:00:10]} 64. g6 {[%clk 0:00:06]}  Rb2 {[%clk 0:00:10]} 65. Bf5 {[%clk 0:00:06]}  Nf8 {[%clk 0:00:09]} 66. Rb7 {[%clk 0:00:06]}  b4 {[%clk 0:00:07]} 67. Kf4 {[%clk 0:00:03]}  c3 {[%clk 0:00:07]} 68. Kg5 {[%clk 0:00:04]}  Rf2 {[%clk 0:00:07]} 69. Rc7 {[%clk 0:00:03]}  b3 {[%clk 0:00:06]} 70. Rxc3 {[%clk 0:00:03]}  b2 {[%clk 0:00:07]} 71. Rb3 {[%clk 0:00:03]}  Kg7 {[%clk 0:00:06]} 72. Rb7+ {[%clk 0:00:03]}  Kg8 {[%clk 0:00:06]} 73. g7 {[%clk 0:00:02]}  Rxf5+ {[%clk 0:00:04]} 74. Kxf5 {[%clk 0:00:03]}  Nh7 {[%clk 0:00:03]} 75. Kg6 {[%clk 0:00:03]}  Nf8+ {[%clk 0:00:02]} 76. gxf8=Q+ {[%clk 0:00:03]}  Kxf8 {[%clk 0:00:03]} 77. Rxb2 {[%clk 0:00:03]} 1-0


[Site "https://www.chess.com"]

[Event "Titled Tuesday Blitz February 22 Late 2022"]
[White "Mirzoev, Azer"]
[Black "Mickiewicz, Piotr"]
[WhiteFideId "13400304"]
[BlackFideId "1114891"]
[WhiteElo "2525"]
[BlackElo "2266"]
[Result "1-0"]
[Round "01"]
[TimeControl "180+1"]
[Date "2022.02.23"]
[WhiteClock "0:00:07"]
[BlackClock "0:00:10"]

1. c4 {[%clk 0:03:00]}  g6 {[%clk 0:02:58]} 2. Nc3 {[%clk 0:03:00]}  Bg7 {[%clk 0:02:59]} 3. g3 {[%clk 0:03:00]}  d6 {[%clk 0:02:59]} 4. Bg2 {[%clk 0:03:01]}  Nf6 {[%clk 0:03:00]} 5. d4 {[%clk 0:03:01]}  O-O {[%clk 0:03:01]} 6. Nf3 {[%clk 0:03:01]}  Nbd7 {[%clk 0:03:00]} 7. O-O {[%clk 0:03:02]}  e5 {[%clk 0:03:01]} 8. h3 {[%clk 0:03:02]}  c6 {[%clk 0:02:59]} 9. e4 {[%clk 0:03:01]}  a5 {[%clk 0:02:56]} 10. Re1 {[%clk 0:03:01]}  Re8 {[%clk 0:02:54]} 11. Kh2 {[%clk 0:02:58]}  exd4 {[%clk 0:02:43]} 12. Nxd4 {[%clk 0:02:57]}  Nc5 {[%clk 0:02:42]} 13. Bf4 {[%clk 0:02:54]}  Nh5 {[%clk 0:02:35]} 14. Be3 {[%clk 0:02:53]}  Nf6 {[%clk 0:02:34]} 15. f3 {[%clk 0:02:51]}  Nfd7 {[%clk 0:02:32]} 16. b3 {[%clk 0:02:46]}  Ne5 {[%clk 0:02:29]} 17. Qd2 {[%clk 0:02:46]}  a4 {[%clk 0:02:16]} 18. Rab1 {[%clk 0:02:40]}  axb3 {[%clk 0:02:15]} 19. axb3 {[%clk 0:02:41]}  Ned3 {[%clk 0:02:11]} 20. Red1 {[%clk 0:02:36]}  Nb4 {[%clk 0:01:50]} 21. Nde2 {[%clk 0:02:30]}  Ncd3 {[%clk 0:01:39]} 22. Nf4 {[%clk 0:02:20]}  Nxf4 {[%clk 0:01:37]} 23. Bxf4 {[%clk 0:02:20]}  Qf6 {[%clk 0:01:05]} 24. Na4 {[%clk 0:02:11]}  Na6 {[%clk 0:00:27]} 25. Qxd6 {[%clk 0:02:07]}  Be6 {[%clk 0:00:23]} 26. Qd2 {[%clk 0:01:32]}  Rad8 {[%clk 0:00:22]} 27. Qe3 {[%clk 0:01:30]}  h6 {[%clk 0:00:20]} 28. h4 {[%clk 0:01:19]}  Kh7 {[%clk 0:00:18]} 29. Nb6 {[%clk 0:00:39]}  Rxd1 {[%clk 0:00:17]} 30. Rxd1 {[%clk 0:00:39]}  Rd8 {[%clk 0:00:18]} 31. Rxd8 {[%clk 0:00:33]}  Qxd8 {[%clk 0:00:19]} 32. Na4 {[%clk 0:00:33]}  Bd4 {[%clk 0:00:18]} 33. Qd2 {[%clk 0:00:28]}  Bf6 {[%clk 0:00:16]} 34. Bxh6 {[%clk 0:00:25]}  Bxh4 {[%clk 0:00:17]} 35. Qxd8 {[%clk 0:00:25]}  Bxd8 {[%clk 0:00:16]} 36. Be3 {[%clk 0:00:17]}  b5 {[%clk 0:00:17]} 37. Nb2 {[%clk 0:00:12]}  bxc4 {[%clk 0:00:16]} 38. Nxc4 {[%clk 0:00:12]}  Be7 {[%clk 0:00:15]} 39. Bf1 {[%clk 0:00:11]}  Bc5 {[%clk 0:00:16]} 40. Bd2 {[%clk 0:00:11]}  Bb4 {[%clk 0:00:14]} 41. Bxb4 {[%clk 0:00:10]}  Nxb4 {[%clk 0:00:13]} 42. f4 {[%clk 0:00:11]}  c5 {[%clk 0:00:13]} 43. Kg1 {[%clk 0:00:09]}  f6 {[%clk 0:00:12]} 44. Na5 {[%clk 0:00:09]}  Kg7 {[%clk 0:00:13]} 45. Kf2 {[%clk 0:00:09]}  Kf7 {[%clk 0:00:13]} 46. Bc4 {[%clk 0:00:09]}  Ke7 {[%clk 0:00:14]} 47. Bxe6 {[%clk 0:00:09]}  Kxe6 {[%clk 0:00:15]} 48. Ke3 {[%clk 0:00:09]}  Nc2+ {[%clk 0:00:14]} 49. Kd3 {[%clk 0:00:09]}  Ne1+ {[%clk 0:00:14]} 50. Kc4 {[%clk 0:00:09]}  g5 {[%clk 0:00:15]} 51. fxg5 {[%clk 0:00:08]}  fxg5 {[%clk 0:00:14]} 52. Kxc5 {[%clk 0:00:09]}  Nf3 {[%clk 0:00:13]} 53. b4 {[%clk 0:00:09]}  Nd2 {[%clk 0:00:13]} 54. b5 {[%clk 0:00:08]}  Nxe4+ {[%clk 0:00:13]} 55. Kc6 {[%clk 0:00:09]}  Nxg3 {[%clk 0:00:14]} 56. b6 {[%clk 0:00:09]}  Nf5 {[%clk 0:00:14]} 57. b7 {[%clk 0:00:09]}  Nd4+ {[%clk 0:00:14]} 58. Kc7 {[%clk 0:00:09]}  Nb5+ {[%clk 0:00:12]} 59. Kb6 {[%clk 0:00:09]}  Nc3 {[%clk 0:00:09]} 60. b8=Q {[%clk 0:00:08]}  Nd5+ {[%clk 0:00:10]} 61. Ka7 {[%clk 0:00:09]}  Ne7 {[%clk 0:00:10]} 62. Qb6+ {[%clk 0:00:08]}  Kd7 {[%clk 0:00:09]} 63. Qb5+ {[%clk 0:00:08]}  Kd6 {[%clk 0:00:09]} 64. Nc4+ {[%clk 0:00:08]}  Kc7 {[%clk 0:00:08]} 65. Qb6+ {[%clk 0:00:08]}  Kd7 {[%clk 0:00:08]} 66. Ne5+ {[%clk 0:00:08]}  Ke8 {[%clk 0:00:09]} 67. Qb5+ {[%clk 0:00:08]}  Kf8 {[%clk 0:00:09]} 68. Nc6 {[%clk 0:00:08]}  Nc8+ {[%clk 0:00:08]} 69. Kb8 {[%clk 0:00:08]}  Nd6 {[%clk 0:00:09]} 70. Qc5 {[%clk 0:00:07]}  Ke8 {[%clk 0:00:10]} 71. Qxd6 {[%clk 0:00:07]} 1-0


[Site "https://www.chess.com"]

[Event "Titled Tuesday Blitz February 22 Late 2022"]
[White "Mogranzini, Roberto"]
[Black "Jones, Gawain C B"]
[WhiteFideId "810894"]
[BlackFideId "409561"]
[WhiteElo "2469"]
[BlackElo "2657"]
[Result "0-1"]
[Round "01"]
[TimeControl "180+1"]
[Date "2022.02.23"]
[WhiteClock "0:00:10"]
[BlackClock "0:00:16"]

1. c4 {[%clk 0:02:57]}  g6 {[%clk 0:02:58]} 2. g3 {[%clk 0:02:57]}  Bg7 {[%clk 0:02:58]} 3. Bg2 {[%clk 0:02:58]}  c5 {[%clk 0:02:58]} 4. Nc3 {[%clk 0:02:58]}  Nc6 {[%clk 0:02:59]} 5. d3 {[%clk 0:02:59]}  Nf6 {[%clk 0:02:57]} 6. Bd2 {[%clk 0:02:59]}  Rb8 {[%clk 0:02:56]} 7. Qc1 {[%clk 0:03:00]}  O-O {[%clk 0:02:54]} 8. Bh6 {[%clk 0:02:59]}  Nd4 {[%clk 0:02:45]} 9. Bxg7 {[%clk 0:02:56]}  Kxg7 {[%clk 0:02:46]} 10. h4 {[%clk 0:02:53]}  h5 {[%clk 0:02:32]} 11. Nf3 {[%clk 0:02:42]}  a6 {[%clk 0:02:20]} 12. b3 {[%clk 0:02:40]}  Qa5 {[%clk 0:02:16]} 13. Nd2 {[%clk 0:02:13]}  b5 {[%clk 0:02:12]} 14. e3 {[%clk 0:02:06]}  Nf5 {[%clk 0:02:11]} 15. O-O {[%clk 0:02:04]}  Bb7 {[%clk 0:02:10]} 16. Nce4 {[%clk 0:01:50]}  Qb6 {[%clk 0:01:52]} 17. Nxf6 {[%clk 0:01:48]}  Qxf6 {[%clk 0:01:51]} 18. Ne4 {[%clk 0:01:47]}  Bxe4 {[%clk 0:01:45]} 19. dxe4 {[%clk 0:01:30]}  Nh6 {[%clk 0:01:44]} 20. cxb5 {[%clk 0:01:29]}  Rxb5 {[%clk 0:01:43]} 21. Qa3 {[%clk 0:01:14]}  Ng4 {[%clk 0:01:36]} 22. Rad1 {[%clk 0:01:04]}  Rd8 {[%clk 0:01:30]} 23. Rd5 {[%clk 0:00:59]}  Qb6 {[%clk 0:01:13]} 24. Rc1 {[%clk 0:00:43]}  d6 {[%clk 0:01:08]} 25. Qb2+ {[%clk 0:00:40]}  Kg8 {[%clk 0:00:59]} 26. Qc3 {[%clk 0:00:41]}  Rb4 {[%clk 0:00:47]} 27. Rcd1 {[%clk 0:00:38]}  Nf6 {[%clk 0:00:45]} 28. Rg5 {[%clk 0:00:38]}  Nxe4 {[%clk 0:00:40]} 29. Bxe4 {[%clk 0:00:38]}  Rxe4 {[%clk 0:00:41]} 30. Qd3 {[%clk 0:00:32]}  Qc6 {[%clk 0:00:39]} 31. Rd5 {[%clk 0:00:26]}  Re6 {[%clk 0:00:35]} 32. Rc1 {[%clk 0:00:26]}  Rb8 {[%clk 0:00:33]} 33. Rc4 {[%clk 0:00:25]}  a5 {[%clk 0:00:33]} 34. g4 {[%clk 0:00:22]}  hxg4 {[%clk 0:00:31]} 35. Rxg4 {[%clk 0:00:22]}  Rb4 {[%clk 0:00:31]} 36. Rdg5 {[%clk 0:00:20]}  Qf3 {[%clk 0:00:21]} 37. Rg3 {[%clk 0:00:18]}  Qe4 {[%clk 0:00:18]} 38. Qxe4 {[%clk 0:00:13]}  Rbxe4 {[%clk 0:00:18]} 39. h5 {[%clk 0:00:14]}  Kg7 {[%clk 0:00:19]} 40. hxg6 {[%clk 0:00:14]}  Rxg6 {[%clk 0:00:19]} 41. Kf1 {[%clk 0:00:13]}  a4 {[%clk 0:00:18]} 42. Ke2 {[%clk 0:00:12]}  axb3 {[%clk 0:00:18]} 43. axb3 {[%clk 0:00:13]}  Rb4 {[%clk 0:00:17]} 44. Rxg6+ {[%clk 0:00:10]}  fxg6 {[%clk 0:00:17]} 45. f4 {[%clk 0:00:10]}  Kf6 {[%clk 0:00:16]} 46. Kf3 {[%clk 0:00:07]}  Rxb3 {[%clk 0:00:17]} 47. Rg1 {[%clk 0:00:08]}  d5 {[%clk 0:00:16]} 48. Rd1 {[%clk 0:00:09]}  d4 {[%clk 0:00:16]} 49. Ke4 {[%clk 0:00:08]}  Rxe3+ {[%clk 0:00:16]} 50. Kd5 {[%clk 0:00:09]}  Rc3 {[%clk 0:00:16]} 51. Re1 {[%clk 0:00:09]}  d3 {[%clk 0:00:15]} 52. Re6+ {[%clk 0:00:09]}  Kf5 {[%clk 0:00:16]} 53. Re1 {[%clk 0:00:10]}  d2 {[%clk 0:00:16]} 54. Rd1 {[%clk 0:00:11]}  Rc2 {[%clk 0:00:16]} 55. Rxd2 {[%clk 0:00:10]}  Rxd2+ {[%clk 0:00:16]} 0-1


[Site "https://www.chess.com"]